fUST/lending_fUST_20251231
["ID","MTS","AMOUNT","RATE_DAILY","PERIOD"]
[400185202,1767177039322,-500.0,0.00013699,2]
[400185203,1767177039331,-500.0,0.00013699,2]
[400185204,1767177039340,-500.0,0.00013699,2]
[400185205,1767177039350,-500.0,0.00013699,2]
[400185206,1767177039359,-500.0,0.00013699,2]
[400185207,1767177039368,-500.0,0.00013699,2]
[400185208,1767177039379,-500.0,0.00013699,2]
[400185209,1767177039389,-500.0,0.00013699,2]
[400185210,1767177039399,-500.0,0.00013699,2]
[400185211,1767177039408,-500.0,0.00013699,2]
[400185212,1767177039418,-463.63501052,0.00013699,2]
[400185213,1767177039427,-500.0,0.00013699,2]
[400185214,1767177039437,-500.0,0.00013699,2]
[400185215,1767177039447,-500.0,0.00013699,2]
[400185216,1767177039457,-500.0,0.00013699,2]
[400185217,1767177039466,-500.0,0.00013699,2]
[400185218,1767177039476,-500.0,0.00013699,2]
[400185219,1767177039485,-500.0,0.00013699,2]
[400185220,1767177039494,-500.0,0.00013699,2]
[400185221,1767177039503,-500.0,0.00013699,2]
[400185222,1767177039513,-500.0,0.00013699,2]
[400185223,1767177039523,-500.0,0.00013699,2]
[400185224,1767177039533,-500.0,0.00013699,2]
[400185225,1767177039542,-500.0,0.00013699,2]
[400185226,1767177039552,-500.0,0.00013699,2]
[400185227,1767177039561,-500.0,0.00013699,2]
[400185228,1767177039570,-500.0,0.00013699,2]
[400185229,1767177039579,-500.0,0.00013699,2]
[400185230,1767177039589,-500.0,0.00013699,2]
[400185231,1767177039598,-500.0,0.00013699,2]
[400185232,1767177039608,-500.0,0.00013699,2]
[400185233,1767177039617,-500.0,0.00013699,2]
[400185234,1767177039627,-500.0,0.00013699,2]
[400185235,1767177039636,-500.0,0.00013699,2]
[400185236,1767177039646,-500.0,0.00013699,2]
[400185237,1767177039655,-568.53710429,0.00013699,2]
[400185238,1767177039664,-500.0,0.00013699,2]
[400185239,1767177039674,-158.18512633,0.00013699,2]
[400185240,1767177039683,-500.0,0.00013699,2]
[400185241,1767177039692,-368.38939569,0.00013699,2]
[400185242,1767177039702,-500.0,0.00013699,2]
[400185243,1767177039712,-500.0,0.00013699,2]
[400185244,1767177039721,-500.0,0.00013699,2]
[400185245,1767177039731,-500.0,0.00013699,2]
[400185246,1767177039740,-500.0,0.00013699,2]
[400185247,1767177039749,-500.0,0.00013699,2]
[400185248,1767177039759,-500.0,0.00013699,2]
[400185249,1767177039768,-500.0,0.00013699,2]
[400185250,1767177039777,-500.0,0.00013699,2]
[400185251,1767177039787,-267.6781502,0.00013699,2]
[400185252,1767177039796,-500.0,0.00013699,2]
[400185253,1767177039806,-247.67,0.00013807,2]
[400185254,1767177039816,-500.0,0.0001382,2]
[400185255,1767177039825,-500.0,0.0001382,2]
[400185256,1767177039834,-500.0,0.0001382,2]
[400185257,1767177039843,-500.0,0.0001382,2]
[400185258,1767177039852,-443.11639674,0.0001382,2]
[400185259,1767177039861,-500.0,0.0001382,2]
[400185260,1767177039871,-500.0,0.0001382,2]
[400185261,1767177039880,-500.0,0.0001382,2]
[400185262,1767177039889,-500.0,0.0001382,2]
[400185263,1767177039898,-500.0,0.0001382,2]
[400185264,1767177039907,-500.0,0.0001382,2]
[400185265,1767177039916,-500.0,0.00013821,2]
[400185266,1767177039925,-1000.0,0.00013821,2]
[400185267,1767177039934,-1000.0,0.00013821,2]
[400185268,1767177039943,-1000.0,0.00013821,2]
[400185269,1767177039952,-1000.0,0.00013821,2]
[400185270,1767177039962,-1000.0,0.00013821,2]
[400185271,1767177039971,-1000.0,0.00013821,2]
[400185272,1767177039980,-1000.0,0.00013821,2]
[400185273,1767177039989,-1000.0,0.00013821,2]
[400185274,1767177039998,-185.55855892,0.00013821,2]
[400185275,1767177040007,-500.0,0.00013821,2]
[400185276,1767177040017,-500.0,0.00013821,2]
[400185277,1767177040026,-1000.0,0.00013821,2]
[400185278,1767177040036,-1000.0,0.00013821,2]
[400185279,1767177040185,-250.79014339,0.00013821,2]
[400185280,1767177040194,-1000.0,0.00013821,2]
[400185281,1767177040204,-424.40432946,0.00013821,2]
[400185282,1767177040214,-1000.0,0.00013821,2]
[400185283,1767177040223,-1000.0,0.00013821,2]
[400185284,1767177040232,-1000.0,0.00013821,2]
[400185285,1767177040242,-1000.0,0.00013821,2]
[400185286,1767177040251,-1000.0,0.00013821,2]
[400185287,1767177040260,-1000.0,0.00013821,2]
[400185288,1767177040269,-1000.0,0.00013821,2]
[400185289,1767177040279,-1000.0,0.00013821,2]
[400185290,1767177040288,-1000.0,0.00013821,2]
[400185291,1767177040298,-1000.0,0.00013821,2]
[400185292,1767177040308,-1000.0,0.00013821,2]
[400185293,1767177040320,-188.492682,0.00014,2]
[400185294,1767177040330,-361.73277769,0.00014067,2]
[400185296,1767177040339,-748.92267472,0.00014094,2]
[400185298,1767177040349,-2992.69500817,0.00014094,2]
[400185300,1767177040359,-420.0,0.00014172,2]
[400185301,1767177040369,-600.0,0.00014221,2]
[400185302,1767177040379,-10000.0,0.00014244,2]
[400185304,1767177040388,-1000.0,0.00014247,2]
[400185305,1767177040397,-909.51288327,0.00014247,2]
[400185307,1767177040406,-1000.0,0.00014247,2]
[400185309,1767177040416,-1000.0,0.00014247,2]
[400185311,1767177040426,-1000.0,0.00014247,2]
[400185313,1767177040435,-1000.0,0.00014247,2]
[400185315,1767177040444,-1000.0,0.00014247,2]
[400185317,1767177040453,-1000.0,0.00014247,2]
[400185319,1767177040462,-1000.0,0.00014247,2]
[400185321,1767177040471,-1000.0,0.00014247,2]
[400185323,1767177040481,-190.10820632,0.00014247,2]
[400185325,1767177040490,-1000.0,0.00014247,2]
[400185327,1767177040499,-925.73894344,0.00014247,2]
[400185329,1767177040508,-1000.0,0.00014247,2]
[400185331,1767177040518,-1000.0,0.00014247,2]
[400185333,1767177040527,-1000.0,0.00014247,2]
[400185334,1767177040536,-1000.0,0.00014247,2]
[400185337,1767177040545,-657.67215419,0.00014247,2]
[400185338,1767177040555,-511.86637987,0.00014247,2]
[400185340,1767177040564,-871.80562161,0.00014247,2]
[400185342,1767177040574,-902.01463508,0.00014247,2]
[400185344,1767177040583,-1000.0,0.00014247,2]
[400185346,1767177040592,-1024.36073826,0.00014247,2]
[400185348,1767177040601,-1000.0,0.00014247,2]
[400185350,1767177040611,-1000.0,0.00014247,2]
[400185352,1767177040620,-1000.0,0.00014247,2]
[400185354,1767177040630,-1000.0,0.00014247,2]
[400185356,1767177040639,-1000.0,0.00014247,2]
[400185358,1767177040649,-1000.0,0.00014247,2]
[400185360,1767177040659,-1000.0,0.00014247,2]
[400185362,1767177040668,-633.65989049,0.00014247,2]
[400185364,1767177040677,-1000.0,0.00014247,2]
[400185366,1767177040687,-1000.0,0.00014247,2]
[400185368,1767177040696,-1000.0,0.00014247,2]
[400185370,1767177040705,-1000.0,0.00014247,2]
[400185372,1767177040714,-1000.0,0.00014247,2]
[400185373,1767177040724,-1000.0,0.00014247,2]
[400185375,1767177040733,-605.24677987,0.00014247,2]
[400185377,1767177040742,-1000.0,0.00014247,2]
[400185379,1767177040751,-1000.0,0.00014247,2]
[400185381,1767177040760,-1000.0,0.00014247,2]
[400185383,1767177040771,-1000.0,0.00014247,2]
[400185385,1767177040781,-788.21762562,0.00014247,2]
[400185387,1767177040790,-1000.0,0.00014247,2]
[400185389,1767177040799,-1000.0,0.00014247,2]
[400185391,1767177040809,-1000.0,0.00014247,2]
[400185393,1767177040819,-1000.0,0.00014247,2]
[400185395,1767177040828,-1000.0,0.00014247,2]
[400185397,1767177040837,-1000.0,0.00014247,2]
[400185399,1767177040847,-1000.0,0.00014247,2]
[400185401,1767177040855,-1000.0,0.00014247,2]
[400185402,1767177040865,-516.82099752,0.00014247,2]
[400185404,1767177040874,-1000.0,0.00014247,2]
[400185406,1767177040884,-1139.28203437,0.00014247,2]
[400185408,1767177040896,-1000.0,0.00014247,2]
[400185410,1767177040905,-1000.0,0.00014247,2]
[400185412,1767177040915,-259.77664584,0.0001429,2]
[400185414,1767177040924,-1500.0,0.00014368,2]
[400185416,1767177040934,-1500.0,0.00014368,2]
[400185418,1767177040943,-1500.0,0.00014368,2]
[400185420,1767177040952,-849.32071924,0.00014368,2]
[400185422,1767177040962,-1500.0,0.00014368,2]
[400185424,1767177040971,-1500.0,0.00014368,2]
[400185426,1767177040981,-1500.0,0.00014368,2]
[400185428,1767177040991,-1500.0,0.00014368,2]
[400185430,1767177041000,-1500.0,0.00014368,2]
[400185432,1767177041009,-1144.50771368,0.00014368,2]
[400185434,1767177041019,-1500.0,0.00014368,2]
[400185436,1767177041029,-1500.0,0.00014368,2]
[400185438,1767177041039,-1500.0,0.00014368,2]
[400185440,1767177041048,-500.0,0.00014368,2]
[400185442,1767177041057,-503.81920107,0.00014368,2]
[400185444,1767177041066,-500.0,0.00014368,2]
[400185446,1767177041075,-500.0,0.00014368,2]
[400185448,1767177041085,-1500.0,0.00014368,2]
[400185450,1767177041094,-1500.0,0.00014368,2]
[400185452,1767177041103,-720.0,0.00014499,2]
[400185454,1767177041111,-731.88390587,0.0001454,2]
[400185456,1767177041121,-1317.39103057,0.0001454,2]
[400185458,1767177041130,-2342.02849879,0.0001454,2]
[400185460,1767177041139,-1904.3430053,0.00014742,2]
[400185462,1767177041148,-1000.0,0.00014795,2]
[400185464,1767177041157,-1500.0,0.00014795,2]
[400185466,1767177041167,-1500.0,0.00014795,2]
[400185468,1767177041176,-1000.0,0.00014795,2]
[400185470,1767177041185,-1000.0,0.00014795,2]
[400185472,1767177041196,-1500.0,0.00014795,2]
[400185474,1767177041206,-1000.0,0.00014795,2]
[400185476,1767177041215,-1500.0,0.00014795,2]
[400185478,1767177041224,-1500.0,0.00014795,2]
[400185480,1767177041233,-1500.0,0.00014795,2]
[400185482,1767177041242,-1500.0,0.00014795,2]
[400185484,1767177041250,-1500.0,0.00014795,2]
[400185485,1767177041260,-1500.0,0.00014795,2]
[400185487,1767177041269,-1518.84773542,0.00014795,2]
[400185489,1767177041279,-182.49603851,0.00014795,2]
[400185491,1767177041289,-1155.66749295,0.00014795,2]
[400185493,1767177041298,-509.61748521,0.00014795,2]
[400185495,1767177041309,-1500.0,0.00014795,2]
[400185497,1767177041321,-1500.0,0.00014795,2]
[400185499,1767177041331,-1500.0,0.00014795,2]
[400185501,1767177041342,-1500.0,0.00014795,2]
[400185503,1767177041351,-1500.0,0.00014795,2]
[400185505,1767177041363,-642.5109954,0.00014795,2]
[400185508,1767177041373,-604.13585388,0.00014795,2]
[400185510,1767177041384,-1500.0,0.00014795,2]
[400185512,1767177041394,-1500.0,0.00014795,2]
[400185514,1767177041403,-1218.16061512,0.00014795,2]
[400185515,1767177041412,-1500.0,0.00014795,2]
[400185517,1767177041422,-1500.0,0.00014795,2]
[400185519,1767177041431,-1500.0,0.00014795,2]
[400185521,1767177041441,-415.94669576,0.00014795,2]
[400185523,1767177041451,-1136.69571136,0.00014795,2]
[400185525,1767177041460,-1500.0,0.00014795,2]
[400185527,1767177041469,-1004.79599952,0.00014795,2]
[400185529,1767177041479,-1500.0,0.00014795,2]
[400185531,1767177041488,-1500.0,0.00014795,2]
[400185533,1767177041497,-1004.98936626,0.00014795,2]
[400185535,1767177041507,-1500.0,0.00014795,2]
[400185537,1767177041515,-1500.0,0.00014795,2]
[400185539,1767177041524,-1500.0,0.00014795,2]
[400185541,1767177041534,-1500.0,0.00014795,2]
[400185542,1767177041544,-567.94507323,0.00014836,2]
[400185544,1767177041553,-425.94607754,0.00014863,2]
[400185546,1767177041563,-100000.0,0.00014882,2]
[400185548,1767177041572,-1384.295523,0.00014882,2]
[400185550,1767177041582,-1384.295523,0.00014882,2]
[400185552,1767177041591,-1384.295523,0.00014882,2]
[400185554,1767177041601,-1384.295523,0.00014882,2]
[400185556,1767177041610,-194.747586,0.00014882,2]
[400185558,1767177041620,-194.747586,0.00014882,2]
[400185560,1767177041629,-194.747586,0.00014882,2]
[400185562,1767177041639,-194.747586,0.00014882,2]
[400185564,1767177041649,-151.0,0.00014882,2]
[400185566,1767177041659,-158.312179,0.00014882,2]
[400185568,1767177041668,-2000.0,0.00014916,2]
[400185570,1767177041678,-2000.0,0.00014916,2]
[400185572,1767177041688,-2000.0,0.00014916,2]
[400185574,1767177041697,-2000.0,0.00014916,2]
[400185576,1767177041707,-260.55819049,0.00014916,2]
[400185578,1767177041717,-2000.0,0.00014916,2]
[400185580,1767177041726,-2000.0,0.00014916,2]
[400185582,1767177041735,-2000.0,0.00014916,2]
[400185584,1767177041744,-2000.0,0.00014916,2]
[400185585,1767177041754,-2076.89571839,0.00014916,2]
[400185586,1767177041764,-2000.0,0.00014916,2]
[400185587,1767177041773,-2000.0,0.00014916,2]
[400185588,1767177041783,-371.51,0.00014957,2]
[400185589,1767177041792,-37729.56632351,0.00015,2]
[400185590,1767177041807,-2043.07746458,0.00015,2]
[400185591,1767177041818,-32957.43359111,0.00015,2]
[400185595,1767177041992,-4041.85773979,0.00015,2]
[400185597,1767177042003,-3228.06488101,0.00015,2]
[400185599,1767177042013,-7463.31362693,0.00015,2]
[400185602,1767177042024,-3435.90441041,0.00015,2]
[400185898,1767177044895,-6770.58491379,0.00015,2]
[400185939,1767177045673,-348.2571358,0.00015,2]
[400185940,1767177046621,-27.46318963,0.00015,2]
[400185941,1767177046758,-288.79884994,0.00015,2]
[400185947,1767177479720,211.3,9.99e-05,2]
[400185948,1767177479984,211.29,9.99e-05,2]
[400185950,1767177659867,-2000.0,0.0001231,2]
[400185979,1767178033131,-318.5076854,0.00011944,2]
[400185980,1767178033151,-155.03442944,0.00012103,2]
[400185983,1767178085862,-5000.0,0.00011476,2]
[400185984,1767178086072,-999.0,0.00011592,2]
[400185992,1767178231660,-2600.0,0.00012187,2]
[400185993,1767178231673,-2400.0,0.00012187,2]
[400185994,1767178231684,-350.0,0.00012187,2]
[400186037,1767178237639,-242.0,0.00012187,2]
[400186039,1767178237649,-373.75964366,0.00012259,2]
[400186041,1767178237659,-300.0,0.00012465,2]
[400186043,1767178237669,-172.68439289,0.00012466,2]
[400186045,1767178237678,-690.73757154,0.00012466,2]
[400186047,1767178237689,-1347.97161028,0.00012466,2]
[400186050,1767178237713,-206.18792569,0.00012466,2]
[400186053,1767178237724,-2762.95028617,0.00012466,2]
[400186055,1767178237733,-4317.10982214,0.00012466,2]
[400186057,1767178237742,-6216.63814389,0.00012466,2]
[400186058,1767178237752,-211.2011233,0.00012466,2]
[400186061,1767178237767,-500.0,0.00012722,2]
[400186063,1767178237777,-632.26179464,0.00012722,2]
[400186065,1767178237790,-252.78,0.00012723,2]
[400186066,1767178237799,-15482.94589434,0.00012723,2]
[400186070,1767178237809,-3461.81556126,0.00012723,2]
[400186071,1767178237819,-601.9593923,0.00012864,2]
[400186073,1767178237828,-9517.76521192,0.000129,2]
[400186075,1767178237838,-175.92221512,0.00012905,2]
[400186077,1767178237848,-316.65998722,0.00012905,2]
[400186079,1767178237857,-300.0,0.0001308,2]
[400186081,1767178237867,-300.0,0.0001308,2]
[400186083,1767178237876,-300.0,0.0001308,2]
[400186085,1767178237885,-300.0,0.0001308,2]
[400186086,1767178237895,-300.0,0.0001308,2]
[400186088,1767178237904,-300.0,0.0001308,2]
[400186089,1767178237913,-300.0,0.0001308,2]
[400186090,1767178237922,-300.0,0.0001308,2]
[400186091,1767178237935,-300.0,0.0001308,2]
[400186092,1767178237945,-300.0,0.0001308,2]
[400186093,1767178237955,-300.0,0.0001308,2]
[400186094,1767178237965,-300.0,0.0001308,2]
[400186095,1767178237974,-300.0,0.0001308,2]
[400186096,1767178237983,-300.0,0.0001308,2]
[400186097,1767178237992,-300.0,0.0001308,2]
[400186098,1767178238002,-600.0,0.0001308,2]
[400186099,1767178238010,-500.0,0.0001308,2]
[400186100,1767178238020,-500.0,0.00013273,2]
[400186101,1767178238030,-500.0,0.00013273,2]
[400186102,1767178238039,-561.98334321,0.00013273,2]
[400186103,1767178238048,-500.0,0.00013273,2]
[400186104,1767178238058,-500.0,0.00013273,2]
[400186105,1767178238067,-500.0,0.00013273,2]
[400186106,1767178238077,-500.0,0.00013273,2]
[400186107,1767178238087,-5.52591545,0.00013273,2]
[400186108,1767178238124,-494.47408455,0.00013273,2]
[400186109,1767178238133,-500.0,0.00013273,2]
[400186110,1767178238143,-500.0,0.00013273,2]
[400186111,1767178238152,-315.88685405,0.00013273,2]
[400186112,1767178238161,-500.0,0.00013273,2]
[400186113,1767178238171,-500.0,0.00013273,2]
[400186114,1767178238180,-500.0,0.00013273,2]
[400186115,1767178238189,-500.0,0.00013273,2]
[400186116,1767178238199,-500.0,0.00013273,2]
[400186117,1767178238208,-500.0,0.00013273,2]
[400186118,1767178238218,-500.0,0.00013273,2]
[400186119,1767178238227,-500.0,0.00013273,2]
[400186120,1767178238237,-500.0,0.00013273,2]
[400186121,1767178238247,-500.0,0.00013273,2]
[400186122,1767178238256,-413.99757981,0.00013273,2]
[400186123,1767178238266,-544.63270575,0.00013273,2]
[400186124,1767178238275,-500.0,0.00013273,2]
[400186125,1767178238284,-500.0,0.00013273,2]
[400186126,1767178238293,-500.0,0.00013273,2]
[400186127,1767178238303,-499.96763801,0.00013273,2]
[400186128,1767178238312,-500.0,0.00013273,2]
[400186129,1767178238322,-500.0,0.00013273,2]
[400186130,1767178238331,-500.0,0.00013273,2]
[400186131,1767178238341,-500.0,0.00013273,2]
[400186132,1767178238350,-500.0,0.00013273,2]
[400186133,1767178238359,-500.0,0.00013273,2]
[400186134,1767178238369,-500.0,0.00013273,2]
[400186135,1767178238378,-500.0,0.00013273,2]
[400186136,1767178238387,-500.0,0.00013273,2]
[400186137,1767178238397,-602.47879957,0.00013273,2]
[400186138,1767178238408,-500.0,0.00013273,2]
[400186139,1767178238418,-500.0,0.00013273,2]
[400186140,1767178238428,-500.0,0.00013273,2]
[400186141,1767178238438,-500.0,0.00013273,2]
[400186142,1767178238447,-150.0,0.00013318,2]
[400186143,1767178238458,-159.59435749,0.00013318,2]
[400186144,1767178238467,-150.0,0.00013318,2]
[400186145,1767178238477,-150.0,0.00013318,2]
[400186146,1767178238487,-150.0,0.00013318,2]
[400186147,1767178238496,-413.29914685,0.00013389,2]
[400186148,1767178238505,-1651.54339079,0.00013389,2]
[400186149,1767178238515,-150.0,0.00013455,2]
[400186150,1767178238525,-150.0,0.00013455,2]
[400186151,1767178238535,-150.0,0.00013455,2]
[400186152,1767178238544,-150.0,0.00013455,2]
[400186153,1767178238554,-150.0,0.00013592,2]
[400186154,1767178238563,-229.51512462,0.00013592,2]
[400186155,1767178238572,-161.38219738,0.00013592,2]
[400186156,1767178238582,-152.57111232,0.00013592,2]
[400186157,1767178238592,-300.0,0.00013673,2]
[400186158,1767178238602,-420.0,0.00013678,2]
[400186159,1767178238612,-500.0,0.00013695,2]
[400186160,1767178238622,-500.0,0.00013695,2]
[400186161,1767178238632,-201.26308096,0.00013695,2]
[400186162,1767178238642,-500.0,0.00013695,2]
[400186163,1767178238652,-592.19187481,0.00013695,2]
[400186164,1767178238661,-500.0,0.00013695,2]
[400186165,1767178238671,-500.0,0.00013695,2]
[400186166,1767178238681,-500.0,0.00013695,2]
[400186167,1767178238691,-500.0,0.00013695,2]
[400186168,1767178238701,-500.0,0.00013695,2]
[400186169,1767178238711,-500.0,0.00013695,2]
[400186170,1767178238720,-500.0,0.00013695,2]
[400186171,1767178238730,-500.0,0.00013695,2]
[400186172,1767178238740,-500.0,0.00013695,2]
[400186173,1767178238749,-500.0,0.00013695,2]
[400186174,1767178238760,-500.0,0.00013695,2]
[400186175,1767178238770,-500.0,0.00013695,2]
[400186176,1767178238780,-10000.0,0.00013696,2]
[400186177,1767178238790,-500.0,0.00013698,2]
[400186178,1767178238801,-500.0,0.00013698,2]
[400186179,1767178238810,-500.0,0.00013698,2]
[400186180,1767178238820,-500.0,0.00013698,2]
[400186181,1767178238831,-500.0,0.00013698,2]
[400186182,1767178238841,-500.0,0.00013698,2]
[400186183,1767178238850,-497.39,0.00013698,2]
[400186184,1767178238859,-500.0,0.00013698,2]
[400186185,1767178238869,-500.0,0.00013698,2]
[400186186,1767178238878,-500.0,0.00013698,2]
[400186187,1767178238888,-500.0,0.00013698,2]
[400186188,1767178238898,-385.90947657,0.00013698,2]
[400186189,1767178238907,-1194.02,0.00013698,2]
[400186190,1767178238917,-1194.02,0.00013698,2]
[400186191,1767178238927,-1194.02,0.00013698,2]
[400186192,1767178238937,-1194.02,0.00013698,2]
[400186193,1767178238946,-1194.02,0.00013698,2]
[400186194,1767178238956,-1194.02,0.00013698,2]
[400186195,1767178238966,-1194.02,0.00013698,2]
[400186196,1767178238976,-1194.02,0.00013698,2]
[400186197,1767178239137,-1194.02,0.00013698,2]
[400186198,1767178239157,-1194.02,0.00013698,2]
[400186199,1767178239167,-1194.02,0.00013698,2]
[400186200,1767178239177,-1194.02,0.00013698,2]
[400186201,1767178239187,-1194.02,0.00013698,2]
[400186202,1767178239197,-1194.02,0.00013698,2]
[400186203,1767178239207,-1194.02,0.00013698,2]
[400186204,1767178239217,-1194.02,0.00013698,2]
[400186205,1767178239227,-1194.02,0.00013698,2]
[400186206,1767178239237,-1194.02,0.00013698,2]
[400186207,1767178239246,-1194.02,0.00013698,2]
[400186208,1767178239256,-500.0,0.00013698,2]
[400186209,1767178239266,-262.16767073,0.00013698,2]
[400186210,1767178239275,-500.0,0.00013698,2]
[400186211,1767178239285,-500.0,0.00013698,2]
[400186212,1767178239295,-500.0,0.00013698,2]
[400186213,1767178239304,-500.0,0.00013698,2]
[400186214,1767178239314,-500.0,0.00013698,2]
[400186215,1767178239324,-500.0,0.00013698,2]
[400186216,1767178239333,-500.0,0.00013698,2]
[400186217,1767178239343,-500.0,0.00013698,2]
[400186218,1767178239353,-500.0,0.00013698,2]
[400186219,1767178239363,-500.0,0.00013698,2]
[400186220,1767178239373,-500.0,0.00013698,2]
[400186221,1767178239383,-500.0,0.00013698,2]
[400186222,1767178239393,-500.0,0.00013698,2]
[400186223,1767178239402,-500.0,0.00013698,2]
[400186224,1767178239413,-352.77068895,0.00013698,2]
[400186226,1767178239422,-2406.304827,0.00013699,2]
[400186227,1767178239432,-500.0,0.00013699,2]
[400186229,1767178239442,-500.0,0.00013699,2]
[400186231,1767178239451,-433.15519118,0.00013699,2]
[400186233,1767178239462,-500.0,0.00013699,2]
[400186234,1767178239471,-500.0,0.00013699,2]
[400186236,1767178239481,-242.87306652,0.00013699,2]
[400186238,1767178239490,-500.0,0.00013699,2]
[400186240,1767178239499,-500.0,0.00013699,2]
[400186241,1767178239509,-500.0,0.00013699,2]
[400186243,1767178239519,-500.0,0.00013699,2]
[400186244,1767178239528,-500.0,0.00013699,2]
[400186246,1767178239538,-500.0,0.00013699,2]
[400186248,1767178239547,-500.0,0.00013699,2]
[400186249,1767178239556,-165.03764715,0.00013699,2]
[400186251,1767178239566,-500.0,0.00013699,2]
[400186252,1767178239575,-157.55448324,0.00013699,2]
[400186254,1767178239584,-500.0,0.00013699,2]
[400186255,1767178239593,-500.0,0.00013699,2]
[400186257,1767178239603,-500.0,0.00013699,2]
[400186258,1767178239613,-500.0,0.00013699,2]
[400186259,1767178239622,-500.0,0.00013699,2]
[400186260,1767178239632,-500.0,0.00013699,2]
[400186262,1767178239641,-500.0,0.00013699,2]
[400186264,1767178239650,-500.0,0.00013699,2]
[400186266,1767178239660,-159.68059141,0.00013699,2]
[400186268,1767178239670,-500.0,0.00013699,2]
[400186270,1767178239680,-500.0,0.00013699,2]
[400186272,1767178239689,-500.0,0.00013699,2]
[400186274,1767178239699,-500.0,0.00013699,2]
[400186276,1767178239708,-500.0,0.00013699,2]
[400186278,1767178239718,-500.0,0.00013699,2]
[400186280,1767178239727,-500.0,0.00013699,2]
[400186282,1767178239737,-500.0,0.00013699,2]
[400186284,1767178239747,-500.0,0.00013699,2]
[400186286,1767178239757,-500.0,0.00013699,2]
[400186288,1767178239767,-500.0,0.00013699,2]
[400186290,1767178239778,-416.75445415,0.00013699,2]
[400186292,1767178239787,-188.42009972,0.00013699,2]
[400186293,1767178239796,-500.0,0.00013699,2]
[400186295,1767178239806,-500.0,0.00013699,2]
[400186297,1767178239815,-500.0,0.00013699,2]
[400186299,1767178239825,-157.18386067,0.00013699,2]
[400186301,1767178239835,-500.0,0.00013699,2]
[400186303,1767178239845,-237.8458189,0.00013699,2]
[400186305,1767178239855,-158.18512633,0.00013699,2]
[400186307,1767178239864,-160.15137988,0.00013699,2]
[400186309,1767178239873,-500.0,0.00013699,2]
[400186311,1767178239882,-500.0,0.00013699,2]
[400186313,1767178239892,-500.0,0.00013699,2]
[400186315,1767178239901,-150.35034149,0.00013699,2]
[400186317,1767178239910,-303.93264249,0.00013699,2]
[400186319,1767178239919,-500.0,0.00013699,2]
[400186321,1767178239928,-500.0,0.00013699,2]
[400186323,1767178239937,-500.0,0.00013699,2]
[400186325,1767178239946,-158.18512013,0.00013699,2]
[400186327,1767178239955,-500.0,0.00013699,2]
[400186329,1767178239964,-500.0,0.00013699,2]
[400186331,1767178239973,-260.28159851,0.00013699,2]
[400186333,1767178239982,-500.0,0.00013699,2]
[400186335,1767178239991,-500.0,0.00013699,2]
[400186336,1767178240000,-160.3309554,0.00013699,2]
[400186338,1767178240009,-500.0,0.00013699,2]
[400186340,1767178240019,-158.38534191,0.00013699,2]
[400186342,1767178240027,-158.38886572,0.00013699,2]
[400186344,1767178240036,-500.0,0.00013699,2]
[400186346,1767178240045,-500.0,0.00013699,2]
[400186348,1767178240054,-422.85192268,0.00013699,2]
[400186350,1767178240063,-500.0,0.00013699,2]
[400186352,1767178240073,-158.38532202,0.00013699,2]
[400186354,1767178240081,-158.39206841,0.00013699,2]